bitfinex/quotes_BTCUSD_20240906
["timestamp","ask_amount","ask_price","bid_price","bid_amount"]
[1725623374434,0.000816,56073.0,56066.0,1.43564028]
[1725623375732,0.000816,56073.0,56066.0,1.79436228]
[1725623376465,0.000816,56073.0,56066.0,1.80436228]
[1725623376688,0.000816,56073.0,56066.0,2.0375723]
[1725623376902,0.000816,56073.0,56066.0,2.1375723]
[1725623379502,0.000816,56073.0,56066.0,2.4942943]
[1725623379721,0.000816,56073.0,56066.0,2.1375723]
[1725623382556,0.000816,56073.0,56066.0,2.4942943]
[1725623382750,0.000816,56073.0,56066.0,2.1375723]
[1725623383033,0.1134,56068.0,56066.0,1.8861723]
[1725623383255,0.1429,56069.0,56066.0,1.8861723]
[1725623383477,0.1134,56071.0,56070.0,0.547044]
[1725623383697,0.143716,56073.0,56071.0,0.547035]
[1725623383948,0.143716,56073.0,56071.0,1.47470243]
[1725623384140,0.143716,56073.0,56071.0,1.51873378]
[1725623384141,0.000816,56073.0,56071.0,1.51873378]
[1725623384839,0.000816,56073.0,56071.0,1.51673378]
[1725623385065,0.178305,56084.0,56079.0,0.178317]
[1725623385331,0.178307,56083.0,56079.0,0.35382996]
[1725623385547,0.356582,56088.0,56080.0,0.03848512]
[1725623385767,0.178298,56086.0,56081.0,0.35382296]
[1725623385979,0.178298,56086.0,56082.0,0.178309]
[1725623386219,0.178298,56086.0,56082.0,0.21678471]
[1725623386679,0.178295,56087.0,56082.0,0.21678471]
[1725623386886,0.178297,56086.0,56082.0,0.21678471]
[1725623387095,0.178294,56087.0,56082.0,0.39229567]
[1725623387516,0.178297,56086.0,56082.0,0.39229567]
[1725623387729,0.178297,56086.0,56082.0,0.40529567]
[1725623388164,0.591202,56085.0,56082.0,0.21398667]
[1725623388376,0.2346,56085.0,56082.0,0.21398667]
[1725623388581,0.2346,56085.0,56082.0,0.40629467]
[1725623389205,0.2346,56085.0,56082.0,0.39229467]
[1725623389600,0.2346,56085.0,56082.0,0.40629467]
[1725623389831,0.2346,56085.0,56083.0,0.178305]
[1725623390041,0.2346,56085.0,56082.0,0.22798667]
[1725623390042,0.2346,56085.0,56082.0,0.41829567]
[1725623390253,0.2346,56085.0,56084.0,0.03846631]
[1725623390464,0.2346,56085.0,56084.0,0.03889207]
[1725623390674,0.2346,56085.0,56084.0,0.07735838]
[1725623391712,0.2346,56085.0,56084.0,0.09135838]
[1725623392359,0.2346,56085.0,56084.0,0.10535838]
[1725623392985,0.4129,56085.0,56084.0,0.10535838]
[1725623393208,1.126102,56085.0,56084.0,0.10535838]
[1725623393421,1.126102,56085.0,56084.0,0.06689207]
[1725623393422,1.482703,56085.0,56084.0,0.06689207]
[1725623393640,1.483518,56085.0,56084.0,0.06689207]
[1725623394485,1.126917,56085.0,56084.0,0.06689207]
[1725623394690,0.770316,56085.0,56084.0,0.06689207]
[1725623394929,0.770316,56085.0,56084.0,0.10535838]
[1725623394930,1.126917,56085.0,56084.0,0.10535838]
[1725623395148,0.770316,56085.0,56084.0,0.10535838]
[1725623395800,0.770316,56085.0,56084.0,0.06689207]
[1725623396025,0.535716,56085.0,56084.0,0.06689207]
[1725623396235,0.000815,56085.0,56084.0,0.06689207]
[1725623396686,0.000815,56085.0,56084.0,0.10535838]
[1725623397342,0.179115,56085.0,56084.0,0.10535838]
[1725623397548,0.000815,56085.0,56084.0,0.10535838]
[1725623398247,0.000347,56085.0,56084.0,0.10535838]
[1725623399088,0.063647,56085.0,56084.0,0.10535838]
[1725623399355,0.063647,56085.0,56084.0,0.28366138]
[1725623400427,0.000347,56085.0,56084.0,0.64026838]
[1725623401284,0.000347,56085.0,56084.0,0.28366138]
[1725623402216,0.000347,56085.0,56084.0,0.64026838]
[1725623402631,0.000347,56085.0,56084.0,0.28366138]
[1725623404824,0.000347,56085.0,56084.0,0.64026838]
[1725623408641,0.000347,56085.0,56084.0,0.99687538]
[1725623408853,0.000347,56085.0,56084.0,0.64026838]
[1725623411986,0.063647,56085.0,56084.0,0.28366138]
[1725623412901,0.063647,56085.0,56084.0,0.10535838]
[1725623413126,0.15650067,56087.0,56084.0,0.28366138]
[1725623413338,0.179105,56088.0,56084.0,0.24476931]
[1725623413561,0.000814,56088.0,56085.0,0.178298]
[1725623413800,0.000814,56088.0,56085.0,0.1783]
[1725623414019,0.000814,56088.0,56086.0,0.21675291]
[1725623415164,0.000814,56088.0,56087.0,0.178294]
[1725623415384,0.000814,56088.0,56087.0,0.21588508]
[1725623415616,0.000814,56088.0,56087.0,0.25433729]
[1725623416518,0.000814,56088.0,56087.0,0.27633729]
[1725623416725,0.000814,56088.0,56087.0,0.63292529]
[1725623416938,0.000814,56088.0,56087.0,0.27633729]
[1725623418078,0.000814,56088.0,56087.0,0.63292529]
[1725623418759,0.000814,56088.0,56087.0,0.27633729]
[1725623418974,0.000814,56088.0,56087.0,0.63292529]
[1725623419436,0.000814,56088.0,56087.0,0.27633729]
[1725623419676,0.26095937,56092.0,56088.0,0.178289]
[1725623419879,0.178282,56091.0,56088.0,0.178289]
[1725623420152,0.178284,56090.0,56089.0,0.03844281]
[1725623420349,0.178284,56090.0,56089.0,0.07696714]
[1725623420604,0.178284,56090.0,56089.0,0.03852433]
[1725623420850,0.178284,56090.0,56089.0,0.07696714]
[1725623420851,0.54485218,56090.0,56089.0,0.07696714]
[1725623422087,0.92002118,56090.0,56089.0,0.03844281]
[1725623422357,1.37659018,56090.0,56089.0,0.03844281]
[1725623422614,0.1783,56085.0,56084.0,0.001628]
[1725623422851,0.00999918,56088.0,56084.0,0.03979938]
[1725623423083,0.1783,56085.0,56084.0,0.07826569]
[1725623424022,0.178297,56087.0,56084.0,0.09226569]
[1725623424251,0.456571,56090.0,56085.0,0.1429]
[1725623424480,0.178291,56088.0,56085.0,0.3212]
[1725623424718,0.178289,56089.0,56086.0,0.21675391]
[1725623425673,0.278285,56090.0,56086.0,0.21675391]
[1725623425912,0.1,56090.0,56087.0,0.178294]
[1725623426164,0.178285,56090.0,56087.0,0.178294]
[1725623426399,0.278284,56091.0,56088.0,0.03844751]
[1725623426617,0.178285,56090.0,56088.0,0.03844751]
[1725623427813,0.278283,56091.0,56088.0,0.21673751]
[1725623428721,0.278283,56091.0,56088.0,0.21673751]
[1725623428938,0.278283,56091.0,56088.0,0.03844751]
[1725623429134,0.278283,56091.0,56088.0,0.21673851]
[1725623429414,0.278283,56091.0,56088.0,0.22573851]
[1725623429653,0.278283,56091.0,56088.0,0.23373851]
[1725623429894,0.278283,56091.0,56088.0,0.22473851]
[1725623430386,0.278283,56091.0,56088.0,0.23173851]
[1725623431935,0.278283,56091.0,56088.0,0.05344751]
[1725623431936,0.178286,56090.0,56088.0,0.05344751]
[1725623432908,0.178286,56090.0,56088.0,0.03844751]
[1725623433162,0.534864,56089.0,56088.0,0.04744751]
[1725623433395,0.178288,56089.0,56088.0,0.0932116]
[1725623433630,0.534864,56089.0,56088.0,0.0932116]
[1725623434101,0.178288,56089.0,56088.0,0.0842116]
[1725623434798,0.534864,56089.0,56088.0,0.0842116]
[1725623435568,0.534864,56089.0,56088.0,0.0852116]
[1725623435845,0.534864,56089.0,56088.0,0.0952116]
[1725623436319,0.15411562,56091.0,56088.0,0.0952116]
[1725623436540,0.178286,56090.0,56088.0,0.05844751]
[1725623436758,0.178288,56089.0,56088.0,0.05844751]
[1725623436971,0.178285,56090.0,56088.0,0.09501104]
[1725623437184,0.178285,56090.0,56088.0,0.05844751]
[1725623437393,0.178285,56090.0,56088.0,0.04844751]
[1725623438226,0.178288,56089.0,56088.0,0.04844751]
[1725623438440,0.178288,56089.0,56088.0,0.07710185]
[1725623438665,0.178288,56089.0,56088.0,0.08410185]
[1725623438865,0.178288,56089.0,56088.0,0.09310185]
[1725623439098,0.178288,56089.0,56088.0,0.08410185]
[1725623439329,0.178288,56089.0,56088.0,0.07710185]
[1725623439562,0.178284,56090.0,56088.0,0.09710185]
[1725623439799,0.178288,56089.0,56088.0,0.05844751]
[1725623440033,0.178288,56089.0,56088.0,0.09517852]
[1725623440259,0.534864,56089.0,56088.0,0.09517852]
[1725623440501,0.178288,56089.0,56088.0,0.09517852]
[1725623440725,0.534864,56089.0,56088.0,0.08517852]
[1725623440928,0.178288,56089.0,56088.0,0.08517852]
[1725623442496,0.000814,56091.0,56090.0,0.178284]
[1725623442712,0.535661,56091.0,56090.0,0.03742171]
[1725623442992,0.535661,56091.0,56090.0,0.18835982]
[1725623443205,0.535661,56091.0,56090.0,0.15041839]
[1725623443414,0.535661,56091.0,56090.0,0.1888565]
[1725623443415,0.179095,56091.0,56090.0,0.1888565]
[1725623443621,0.535658,56091.0,56090.0,0.1888565]
[1725623444701,0.535658,56091.0,56090.0,0.0763565]
[1725623445333,0.535658,56091.0,56090.0,0.0833565]
[1725623445546,0.535658,56091.0,56090.0,1.1240785]
[1725623445547,0.000814,56091.0,56090.0,1.1240785]
[1725623445760,0.000814,56091.0,56090.0,0.8932095]
[1725623446386,0.000814,56091.0,56090.0,1.2497785]
[1725623446598,0.000814,56091.0,56090.0,0.8932095]
[1725623447655,0.000814,56091.0,56090.0,1.42528946]
[1725623447872,0.000814,56091.0,56090.0,1.43528946]
[1725623448142,0.000814,56091.0,56090.0,1.79185846]
[1725623448596,0.000814,56091.0,56090.0,1.78485846]
[1725623448822,0.000814,56091.0,56090.0,2.14842746]
[1725623449035,0.000814,56091.0,56090.0,2.14242746]
[1725623449241,0.000814,56091.0,56090.0,2.14342746]
[1725623449712,0.000814,56091.0,56090.0,1.79285846]
[1725623449925,0.000814,56091.0,56090.0,1.80685846]
[1725623450163,0.000814,56091.0,56090.0,2.16342746]
[1725623450377,0.000814,56091.0,56090.0,2.14942746]
[1725623450820,0.000814,56091.0,56090.0,2.13542746]
[1725623451037,0.000814,56092.0,56091.0,1.25997]
[1725623451250,0.000814,56092.0,56091.0,1.74205893]
[1725623451476,0.00082,56107.0,56106.0,1.15907]
[1725623451693,0.00082,56107.0,56106.0,1.60500166]
[1725623451931,0.00082,56107.0,56106.0,1.6433646]
[1725623452585,0.00082,56107.0,56106.0,1.6573646]
[1725623452793,0.00082,56107.0,56106.0,1.6713646]
[1725623453041,0.00082,56107.0,56106.0,1.6573646]
[1725623453282,0.00082,56107.0,56106.0,1.6433646]
[1725623453485,0.00082,56107.0,56106.0,1.6713646]
[1725623453939,0.356385,56119.0,56107.0,0.35646]
[1725623454184,0.356385,56119.0,56108.0,0.44351096]
[1725623454405,0.356385,56119.0,56109.0,0.356446]
[1725623454619,0.00082,56124.0,56116.0,0.23174273]
[1725623454848,0.178998,56124.0,56117.0,0.624398]
[1725623455079,0.178998,56124.0,56120.0,0.178189]
[1725623455287,0.00082,56124.0,56121.0,0.178186]
[1725623455512,0.00082,56124.0,56123.0,0.1134]
[1725623455719,0.00082,56124.0,56123.0,0.15119775]
[1725623455933,0.00082,56124.0,56123.0,0.18948088]
[1725623456368,0.00082,56124.0,56123.0,0.36766088]
[1725623456576,0.00082,56124.0,56123.0,0.18948088]
[1725623456821,0.00082,56124.0,56123.0,0.37766088]
[1725623457074,0.00082,56124.0,56123.0,0.38766088]
[1725623457490,0.00082,56124.0,56123.0,0.74402088]
[1725623457697,0.00082,56124.0,56123.0,0.38766088]
[1725623458607,0.00082,56124.0,56123.0,1.27589184]
[1725623458815,0.00082,56124.0,56123.0,0.91953184]
[1725623459702,0.00082,56124.0,56123.0,0.56317184]
[1725623460160,0.00082,56124.0,56123.0,1.27589184]
[1725623460370,0.00082,56124.0,56123.0,1.42459184]
[1725623460641,0.00082,56124.0,56123.0,1.79095184]
[1725623460921,0.00082,56124.0,56123.0,1.43459184]
[1725623461154,0.00082,56124.0,56123.0,0.71187184]
[1725623461387,0.00082,56124.0,56123.0,1.06823184]
[1725623462117,0.00082,56124.0,56123.0,1.43459184]
[1725623462823,0.00082,56124.0,56123.0,1.79095184]
[1725623463880,0.00082,56124.0,56123.0,1.79295184]
[1725623464362,0.00082,56124.0,56123.0,2.13931184]
[1725623464821,0.00082,56124.0,56123.0,2.15231184]
[1725623465080,0.00082,56124.0,56123.0,2.14231184]
[1725623465324,0.00082,56124.0,56123.0,2.15331184]
[1725623465578,0.00082,56129.0,56128.0,1.74709073]
[1725623465808,0.00082,56129.0,56128.0,1.96088314]
[1725623466073,0.00082,56129.0,56128.0,2.00460846]
[1725623466298,0.00082,56129.0,56128.0,2.00660846]
[1725623466771,0.00082,56129.0,56128.0,2.36293646]
[1725623467232,0.00082,56129.0,56128.0,2.00460846]
[1725623467706,0.00082,56129.0,56128.0,0.51571773]
[1725623467950,0.00082,56129.0,56128.0,1.05020973]
[1725623468173,0.00082,56129.0,56128.0,1.64828046]
[1725623468400,0.00082,56129.0,56128.0,1.67628046]
[1725623468671,0.00082,56129.0,56128.0,1.66228046]
[1725623469552,0.00082,56129.0,56128.0,1.67628046]
[1725623470163,0.00082,56129.0,56128.0,1.66228046]
[1725623470387,0.00082,56129.0,56128.0,2.01860846]
[1725623471288,0.00082,56129.0,56128.0,2.00460846]
[1725623471494,0.00082,56129.0,56128.0,2.01860846]
[1725623471710,0.00082,56129.0,56128.0,2.03260846]
[1725623471925,0.00082,56129.0,56128.0,2.00660846]
[1725623472374,0.00082,56129.0,56128.0,2.03460846]
[1725623472652,0.00082,56129.0,56128.0,2.02060846]
[1725623472877,0.00082,56129.0,56128.0,2.00660846]
[1725623473112,0.00082,56129.0,56128.0,2.02060846]
[1725623474537,0.00082,56129.0,56128.0,2.00660846]
[1725623474789,0.00082,56129.0,56128.0,2.00460846]
[1725623475041,0.00082,56129.0,56128.0,2.02860846]
[1725623475237,0.00082,56129.0,56128.0,2.04460846]
[1725623475536,0.00082,56129.0,56128.0,2.01660846]
[1725623475749,0.00082,56129.0,56128.0,2.04460846]
[1725623476211,0.00082,56129.0,56128.0,2.40093646]
[1725623478120,0.00082,56129.0,56128.0,2.50093646]
[1725623478551,0.00082,56129.0,56128.0,2.48693646]
[1725623479482,0.00082,56129.0,56128.0,2.85726446]
[1725623480115,0.00082,56129.0,56128.0,2.50093646]
[1725623480382,0.00082,56129.0,56128.0,2.49893646]
[1725623480825,0.00082,56129.0,56128.0,2.50093646]
[1725623481047,0.00082,56129.0,56128.0,2.51747749]
[1725623482007,0.00082,56129.0,56128.0,1.92740676]
[1725623482263,0.00082,56129.0,56128.0,0.63372276]
[1725623482520,0.00082,56129.0,56128.0,0.99005076]
[1725623482738,0.00082,56129.0,56128.0,1.34637876]
[1725623482973,0.00082,56129.0,56128.0,0.99005076]
[1725623483417,0.00082,56129.0,56128.0,1.34637876]
[1725623483876,0.17659426,56136.0,56132.0,0.178151]
[1725623484122,0.17659426,56136.0,56128.0,0.80188676]
[1725623484123,0.534435,56134.0,56133.0,0.17551096]
[1725623484372,0.534435,56134.0,56133.0,0.27272809]
[1725623484626,0.178142,56135.0,56133.0,0.27272809]
[1725623484855,0.178142,56135.0,56133.0,0.23573978]
[1725623485559,0.00013,56140.0,56133.0,0.23573978]
[1725623485790,0.558135,56134.0,56133.0,0.23573978]
[1725623486006,0.558135,56134.0,56133.0,0.11211908]
[1725623486007,1.310215,56134.0,56133.0,0.11211908]
[1725623486466,1.310215,56134.0,56133.0,0.05189026]
[1725623487364,1.310215,56134.0,56133.0,0.06589026]
[1725623487581,1.310215,56134.0,56133.0,0.05189026]
[1725623487804,1.310215,56134.0,56133.0,0.03789026]
[1725623488114,0.534435,56134.0,56133.0,0.04889026]
[1725623488332,0.178145,56134.0,56133.0,0.05189026]
[1725623488575,0.178145,56134.0,56133.0,0.06589026]
[1725623488825,0.534435,56134.0,56133.0,0.12611908]
[1725623489310,0.178145,56134.0,56133.0,0.12611908]
[1725623490772,0.356252,56141.0,56134.0,0.178144]
[1725623491029,0.178132,56138.0,56134.0,0.178144]
[1725623491284,0.178132,56138.0,56135.0,0.06021381]
[1725623491534,0.356252,56141.0,56138.0,0.178132]
[1725623491535,0.178125,56141.0,56138.0,0.178132]
[1725623491758,0.178125,56141.0,56138.0,0.296232]
[1725623492025,0.178125,56141.0,56139.0,0.06018378]
[1725623492256,0.178124,56141.0,56139.0,0.09851888]
[1725623492502,0.0237,56146.0,56139.0,0.09851888]
[1725623492503,0.03369918,56146.0,56139.0,0.06018378]
[1725623492748,0.178123,56141.0,56139.0,0.06018378]
[1725623493222,0.01864703,56141.0,56139.0,0.06018378]
[1725623493436,0.19677203,56141.0,56139.0,0.06018378]
[1725623494192,0.01864703,56141.0,56139.0,0.06018378]
[1725623494472,0.000815,56140.0,56139.0,0.07118378]
[1725623494713,0.000815,56140.0,56139.0,0.10848715]
[1725623495209,0.000815,56140.0,56139.0,0.11848715]
[1725623495459,0.000815,56140.0,56139.0,1.31684311]
[1725623495725,0.000815,56140.0,56139.0,1.32784311]
[1725623496488,0.00081,56149.0,56144.0,0.178113]
[1725623496710,0.00081,56149.0,56144.0,0.77691215]
[1725623496960,0.00081,56149.0,56144.0,1.1932844]
[1725623497217,0.00081,56149.0,56144.0,1.6659104]
[1725623497491,0.00081,56149.0,56144.0,1.3096844]
[1725623497945,0.00081,56149.0,56144.0,1.3236844]
[1725623498201,0.00081,56149.0,56144.0,1.6799104]
[1725623498464,0.00081,56149.0,56144.0,1.6939104]
[1725623501017,0.00081,56149.0,56144.0,1.3376844]
[1725623501247,0.00081,56149.0,56144.0,1.6939104]
[1725623501456,0.00081,56149.0,56144.0,1.46216767]
[1725623502369,0.00081,56149.0,56144.0,1.6939104]
[1725623502601,0.00081,56149.0,56144.0,1.7039104]
[1725623503299,0.00081,56149.0,56144.0,2.0601364]
[1725623519168,0.00081,56149.0,56144.0,2.4263624]
[1725623519428,0.00081,56149.0,56144.0,2.4283624]
[1725623520185,0.00081,56149.0,56144.0,2.4143624]
[1725623520426,0.00081,56149.0,56144.0,2.4263624]
[1725623520917,0.00081,56149.0,56144.0,2.4143624]
[1725623522133,0.00081,56149.0,56144.0,2.4283624]
[1725623522385,0.00081,56149.0,56144.0,2.4143624]
[1725623522621,0.00081,56149.0,56144.0,2.4283624]
[1725623522864,0.00081,56149.0,56144.0,2.4143624]
[1725623523394,0.00081,56149.0,56144.0,2.7705884]
[1725623523633,0.00081,56149.0,56144.0,2.7565884]
[1725623523875,0.00081,56149.0,56144.0,2.7705884]
[1725623524135,0.00081,56164.0,56162.0,0.356112]
[1725623524361,0.00081,56164.0,56163.0,0.70966996]
[1725623524589,0.00081,56164.0,56163.0,1.52002163]
[1725623525273,0.02881,56164.0,56163.0,0.80780963]
[1725623525504,0.02881,56164.0,56163.0,0.63229867]
[1725623525738,0.02881,56164.0,56163.0,0.64429867]
[1725623525974,0.02881,56164.0,56163.0,0.63229867]
[1725623526253,0.02881,56164.0,56163.0,0.98840467]
[1725623526483,0.02881,56164.0,56163.0,1.00240467]
[1725623526705,0.00081,56164.0,56163.0,1.53402163]
[1725623526932,0.00081,56164.0,56163.0,1.54602163]
[1725623527371,0.01495684,56178.0,56163.0,1.54602163]
[1725623527372,0.01495684,56178.0,56169.0,0.356068]
[1725623527593,0.356027,56176.0,56171.0,0.178027]
[1725623527814,0.356009,56179.0,56170.0,0.41601023]
[1725623528044,0.178017,56175.0,56172.0,0.05993623]
[1725623528274,0.178017,56175.0,56171.0,0.178026]
[1725623528497,0.178017,56175.0,56171.0,0.23796973]
[1725623528734,0.178017,56175.0,56172.0,0.05993623]
[1725623530736,0.178832,56175.0,56172.0,0.07393623]
[1725623531179,0.000815,56175.0,56173.0,0.178021]
[1725623531398,0.000815,56175.0,56172.0,0.08793623]
[1725623531629,0.000815,56175.0,56174.0,0.23793924]
[1725623531852,0.000815,56175.0,56174.0,0.21673433]
[1725623532103,0.000815,56175.0,56174.0,0.03871633]
[1725623532328,0.000815,56175.0,56174.0,0.09863757]
[1725623532516,0.000815,56175.0,56174.0,0.27665557]
[1725623532824,0.000815,56175.0,56174.0,0.09863757]
[1725623533055,0.17883,56175.0,56174.0,0.11263757]
[1725623533286,0.53486,56175.0,56174.0,0.07392124]
[1725623533539,0.53486,56175.0,56174.0,0.07380416]
[1725623533540,1.47866273,56175.0,56174.0,0.07380416]
[1725623533770,1.98112162,56175.0,56174.0,0.07380416]
[1725623534002,1.98312162,56175.0,56174.0,0.014]
[1725623534240,1.98312162,56175.0,56174.0,0.027]
[1725623534476,1.98312162,56175.0,56145.0,0.1152]
[1725623534477,0.012,56167.0,56159.0,0.52650515]
[1725623534715,0.76592973,56160.0,56159.0,0.52650515]
[1725623534936,0.178098,56149.0,56144.0,0.178112]
[1725623535166,0.23174273,56156.0,56145.0,0.17551096]
[1725623535394,0.23174273,56156.0,56149.0,0.178095]
[1725623535395,0.178083,56154.0,56149.0,0.178095]
[1725623535620,0.178086,56153.0,56148.0,0.178099]
[1725623536392,0.178086,56153.0,56149.0,0.178097]
[1725623536633,0.178079,56155.0,56150.0,0.178093]
[1725623536870,0.178079,56155.0,56148.0,0.17551096]
[1725623536871,0.178083,56154.0,56148.0,0.17551096]
[1725623537105,0.178084,56153.0,56148.0,0.17551096]
[1725623537363,0.178084,56153.0,56149.0,0.178096]
[1725623537606,0.001,56153.0,56149.0,0.184096]
[1725623537849,0.001,56153.0,56150.0,0.178093]
[1725623538093,0.178081,56155.0,56150.0,0.178093]
[1725623538337,0.001,56153.0,56150.0,0.178093]
[1725623538814,0.002,56153.0,56150.0,0.178093]
[1725623539059,0.002,56153.0,56149.0,0.363194]
[1725623539060,0.002,56153.0,56151.0,0.178089]
[1725623539300,0.001,56153.0,56151.0,0.178089]
[1725623539538,0.001,56153.0,56152.0,0.534264]
[1725623539784,0.11864287,56160.0,56156.0,0.178075]
[1725623540040,0.356085,56167.0,56156.0,0.17551096]
[1725623540304,0.178049,56165.0,56161.0,0.178058]
[1725623540545,0.01864138,56166.0,56162.0,0.178056]
[1725623540831,0.19668738,56166.0,56162.0,0.178055]
[1725623541069,0.19668738,56166.0,56163.0,0.05999201]
[1725623541314,0.19668738,56166.0,56163.0,0.23804501]
[1725623541552,0.01864138,56166.0,56163.0,0.23804501]
[1725623541787,0.19668538,56166.0,56163.0,0.05999201]
[1725623542026,0.178049,56164.0,56163.0,0.05999201]
[1725623542271,0.178049,56164.0,56163.0,0.09830321]
[1725623542510,0.01864138,56166.0,56163.0,0.0383112]
[1725623542753,0.19668638,56166.0,56162.0,0.178055]
[1725623542995,0.01964138,56166.0,56164.0,0.05998451]
[1725623543232,0.01964138,56166.0,56165.0,0.178046]
[1725623543478,0.01964138,56166.0,56165.0,0.27616147]
[1725623543479,0.01864138,56166.0,56165.0,0.27616147]
[1725623543722,0.01864138,56166.0,56165.0,0.09811547]
[1725623544210,0.01864138,56166.0,56165.0,0.27616147]
[1725623544451,0.01864138,56166.0,56165.0,0.63825447]
[1725623544711,0.01864138,56166.0,56165.0,0.28216147]
[1725623545907,0.01964138,56166.0,56165.0,0.28916147]
[1725623547367,0.01964138,56166.0,56165.0,0.11111547]
[1725623548343,0.01964138,56166.0,56165.0,0.28916147]
[1725623548588,0.01964138,56166.0,56165.0,0.64525447]
[1725623549064,0.01964138,56166.0,56165.0,0.11111547]
[1725623549544,0.01964138,56166.0,56165.0,0.28916147]
[1725623550027,0.01964138,56166.0,56165.0,0.64525447]
[1725623550264,0.01964138,56166.0,56165.0,0.96696543]
[1725623551380,0.001,56166.0,56165.0,1.32305843]
[1725623554200,0.001,56166.0,56165.0,0.11111547]
[1725623554451,1.12295973,56166.0,56165.0,0.07297701]
[1725623554682,1.47904673,56166.0,56165.0,0.07297701]
[1725623554917,1.47904673,56166.0,56165.0,0.013]
[1725623555153,1.47804673,56166.0,56165.0,0.006]
[1725623555383,1.57804673,56166.0,56165.0,0.006]
[1725623555626,1.57804673,56166.0,56165.0,0.008]
[1725623555877,1.57804673,56166.0,56165.0,0.006]
[1725623556125,1.57804673,56166.0,56165.0,0.008]
[1725623556126,1.93413373,56166.0,56165.0,0.008]
[1725623556372,1.93413373,56166.0,56165.0,0.00663835]
[1725623556862,1.94920477,56166.0,56165.0,0.002]
[1725623557112,1.94920477,56166.0,56165.0,0.00463]
[1725623557626,1.94920477,56166.0,56165.0,0.00363]
[1725623557881,1.94920477,56166.0,56165.0,0.00463]
[1725623557882,2.00229268,56166.0,56165.0,0.00463]
[1725623558897,1.59311777,56166.0,56165.0,0.00463]
[1725623559869,0.990217,56166.0,56165.0,0.00463]
[1725623560576,0.63413,56166.0,56165.0,0.04320022]
[1725623560797,0.990217,56166.0,56165.0,0.04320022]
[1725623561019,0.990217,56166.0,56165.0,0.10317723]
[1725623561247,0.990217,56166.0,56165.0,0.04320022]
[1725623562372,0.990217,56166.0,56165.0,0.10317723]
[1725623562559,0.990217,56166.0,56165.0,0.04320022]
[1725623562785,0.990217,56166.0,56165.0,0.10317723]
[1725623563031,0.990217,56166.0,56165.0,0.04320022]
[1725623563260,0.990217,56166.0,56165.0,0.10317723]
[1725623563453,0.990217,56166.0,56165.0,0.04320022]
[1725623563671,0.990217,56166.0,56165.0,0.10317723]
[1725623563888,0.990217,56166.0,56165.0,0.04320022]
[1725623564116,0.990217,56166.0,56165.0,0.10317723]
[1725623564400,0.63413,56166.0,56165.0,0.10317723]
[1725623566951,0.65277069,56166.0,56165.0,0.10317723]
[1725623567379,0.63413,56166.0,56165.0,0.10317723]
[1725623567849,0.990217,56166.0,56165.0,0.10317723]
[1725623568525,0.990217,56166.0,56165.0,0.06460701]
[1725623568768,0.990217,56166.0,56165.0,0.00463]
[1725623569954,0.991032,56166.0,56165.0,0.00463]
[1725623571563,1.347119,56166.0,56165.0,0.00463]
[1725623574490,1.36206949,56166.0,56165.0,0.00463]
[1725623581224,1.36206949,56166.0,56165.0,0.15073]
[1725623581930,1.36206949,56166.0,56165.0,0.18832503]
[1725623581931,0.534945,56166.0,56165.0,0.18832503]
[1725623582409,0.534945,56166.0,56165.0,0.24830204]
[1725623582855,0.55358627,56166.0,56165.0,0.24830204]
[1725623583082,0.55358627,56166.0,56165.0,0.24530204]
[1725623583305,0.90967327,56166.0,56165.0,0.24830204]
[1725623583557,0.55358627,56166.0,56165.0,0.24830204]
[1725623583918,0.55358627,56166.0,56165.0,0.24530204]
[1725623584134,0.55458627,56166.0,56165.0,0.25230204]
[1725623584357,0.55458627,56166.0,56165.0,0.25630204]
[1725623584565,0.55458627,56166.0,56165.0,0.25230204]
[1725623584794,0.91067327,56166.0,56165.0,0.25230204]
[1725623584997,0.19949927,56166.0,56165.0,0.37470204]
[1725623586728,0.02145627,56166.0,56165.0,0.37470204]
[1725623588574,0.19949927,56166.0,56165.0,0.37470204]
[1725623589025,0.02145627,56166.0,56165.0,0.37470204]
[1725623593962,0.55558627,56166.0,56165.0,0.37470204]
[1725623594186,0.55558627,56166.0,56165.0,0.31472503]
[1725623594418,0.91167327,56166.0,56165.0,0.27713]
[1725623594652,0.91167327,56166.0,56165.0,0.33710701]
[1725623594885,0.91167327,56166.0,56165.0,0.27713]
[1725623595114,0.91167327,56166.0,56165.0,0.33710701]
[1725623597653,1.26776027,56166.0,56165.0,0.22170701]
[1725623597875,1.26776027,56166.0,56165.0,0.07560701]
[1725623598095,1.26776027,56166.0,56165.0,0.01563]
[1725623601517,1.28259195,56166.0,56165.0,0.01563]
[1725623603587,1.33585156,56166.0,56165.0,0.01563]
[1725623603813,1.28259195,56166.0,56165.0,0.01563]
[1725623604267,1.33585156,56166.0,56165.0,0.01563]
[1725623606673,1.12217213,56166.0,56165.0,0.01563]
[1725623606900,1.24695552,56166.0,56165.0,0.01563]
[1725623611510,1.24695552,56166.0,56165.0,0.13093]
[1725623612214,0.87603684,56166.0,56165.0,0.27793]
[1725623612436,0.178043,56166.0,56165.0,0.27793]
[1725623612659,0.178043,56166.0,56165.0,0.31655462]
[1725623612886,0.53413,56166.0,56165.0,0.31655462]
[1725623613129,0.178041,56167.0,56165.0,0.11451834]
[1725623613359,0.178041,56167.0,56166.0,0.2518]
[1725623613604,0.178041,56167.0,56166.0,0.34894853]
[1725623614772,0.178041,56167.0,56166.0,0.35494853]
[1725623614993,0.179041,56167.0,56166.0,0.35494853]
[1725623615687,0.179857,56167.0,56166.0,0.36094853]
[1725623618504,0.535937,56167.0,56166.0,0.36094853]
[1725623619918,0.179857,56167.0,56166.0,0.36094853]
[1725623622709,0.535937,56167.0,56166.0,0.36094853]
[1725623623160,0.892017,56167.0,56166.0,0.36094853]
[1725623623384,1.248097,56167.0,56166.0,0.07225622]
[1725623623610,1.248097,56167.0,56166.0,0.012]
[1725623623872,1.30144031,56167.0,56166.0,0.012]
[1725623624127,1.32811196,56167.0,56166.0,0.012]
[1725623624395,1.42811196,56167.0,56166.0,0.012]
[1725623624654,1.45678362,56167.0,56166.0,0.012]
[1725623624873,1.76841673,56167.0,56166.0,0.012]
[1725623625100,1.92844666,56167.0,56166.0,0.012]
[1725623625343,2.12449673,56167.0,56166.0,0.006]